[Event "Torneo Nuevo Centro. Jornada 10"]
[Site "Chess.com"]
[Date "2020.08.21"]
[Round "5"]
[White "Camison Zornoza, Cesar"]
[Black "Conejero Martínez, Víctor"]
[Result "1-0"]
[WhiteElo "1794"]
[BlackElo "1412"]
[TimeControl "180+2"]
[EndTime "11:23:25 PDT"]
[Termination "Victoria de cczchess por jaque mate"]

1. e4 {[%clk 0:03:01.9]} 1... c5 {[%clk 0:03:00.1]} 2. d4 {[%clk 0:03:02.4]}
2... cxd4 {[%clk 0:03:00.6]} 3. c3 {[%clk 0:03:03.9]} 3... dxc3 {[%clk
0:03:00.2]} 4. Nxc3 {[%clk 0:03:04.5]} 4... Nc6 {[%clk 0:02:59.7]} 5. Nf3 {[%clk
0:03:05.3]} 5... d6 {[%clk 0:03:00]} 6. Bc4 {[%clk 0:03:06.4]} 6... Nf6 {[%clk
0:02:59.4]} 7. O-O {[%clk 0:02:54.5]} 7... e6 {[%clk 0:03:00.4]} 8. Qe2 {[%clk
0:02:53.5]} 8... Be7 {[%clk 0:02:53.4]} 9. Rd1 {[%clk 0:02:54.3]} 9... O-O
{[%clk 0:02:53]} 10. e5 {[%clk 0:02:55]} 10... Ng4 {[%clk 0:02:33]} 11. exd6
{[%clk 0:02:50.5]} 11... Bxd6 {[%clk 0:02:29.9]} 12. Nb5 {[%clk 0:02:40]} 12...
Bxh2+ {[%clk 0:01:41.7]} 13. Nxh2 {[%clk 0:02:36.5]} 13... Qh4 {[%clk
0:01:10.7]} 14. Qxg4 {[%clk 0:02:26.2]} 14... Qxg4 {[%clk 0:01:02]} 15. Nxg4
{[%clk 0:02:26.7]} 15... e5 {[%clk 0:01:00.8]} 16. Bd5 {[%clk 0:02:19.1]} 16...
Bxg4 {[%clk 0:00:57.9]} 17. f3 {[%clk 0:02:19.8]} 17... Bd7 {[%clk 0:00:51.6]}
18. Nd6 {[%clk 0:02:11.8]} 18... Rab8 {[%clk 0:00:45.5]} 19. Nxf7 {[%clk
0:02:08]} 19... Rxf7 {[%clk 0:00:45.2]} 20. Bxf7+ {[%clk 0:02:08.8]} 20... Kxf7
{[%clk 0:00:46.3]} 21. Rxd7+ {[%clk 0:02:09.7]} 21... Ke6 {[%clk 0:00:45.7]} 22.
Rxg7 {[%clk 0:02:10.5]} 22... Rd8 {[%clk 0:00:44.2]} 23. Be3 {[%clk 0:02:08.7]}
23... Nb4 {[%clk 0:00:41.5]} 24. Rc1 {[%clk 0:01:50.6]} 24... Nxa2 {[%clk
0:00:41.1]} 25. Ra1 {[%clk 0:01:49.2]} 25... Nb4 {[%clk 0:00:41.3]} 26. Rxa7
{[%clk 0:01:49.1]} 26... Nc2 {[%clk 0:00:41.4]} 27. Bf2 {[%clk 0:01:46.7]} 27...
Rd1+ {[%clk 0:00:41]} 28. Kh2 {[%clk 0:01:47.8]} 28... Rd2 {[%clk 0:00:39]} 29.
Bh4 {[%clk 0:01:42.3]} 29... Ne3 {[%clk 0:00:37]} 30. Raxb7 {[%clk 0:01:36.5]}
30... Rc2 {[%clk 0:00:26.9]} 31. Rb6+ {[%clk 0:01:25.9]} 31... Kf5 {[%clk
0:00:27.4]} 32. Rg5+ {[%clk 0:01:25]} 32... Kf4 {[%clk 0:00:25.6]} 33. Rf6+
{[%clk 0:01:23.9]} 33... Nf5 {[%clk 0:00:19.3]} 34. Rfxf5+ {[%clk 0:01:24.7]}
34... Ke3 {[%clk 0:00:19.3]} 35. Rxe5+ {[%clk 0:01:25.5]} 35... Kd3 {[%clk
0:00:18]} 36. Rd5+ {[%clk 0:01:25.4]} 36... Ke2 {[%clk 0:00:18]} 37. Rge5+
{[%clk 0:01:26.4]} 37... Kf1 {[%clk 0:00:18.8]} 38. Rd1# {[%clk 0:01:26.9]} 1

[Event "Torneo Nuevo Centro. Jornada 10"]
[Site "Chess.com"]
[Date "2020.08.21"]
[Round "5"]
[White "Gómez Alonso, Óscar"]
[Black "Aymerich Rosell, Pablo"]
[Result "0-1"]
[WhiteElo "1839"]
[BlackElo "1975"]
[TimeControl "180+2"]
[EndTime "11:23:31 PDT"]
[Termination "Victoria de jasikevic por abandono"]

1. d4 {[%clk 0:03:00.4]} 1... Nf6 {[%clk 0:03:00]} 2. c4 {[%clk 0:03:01.3]} 2...
g6 {[%clk 0:03:00.8]} 3. Nc3 {[%clk 0:03:02.4]} 3... d5 {[%clk 0:03:01.4]} 4. e3
{[%clk 0:03:02.4]} 4... Bg7 {[%clk 0:03:00.8]} 5. Bd3 {[%clk 0:03:02.4]} 5... c5
{[%clk 0:03:01.6]} 6. Nge2 {[%clk 0:03:02.6]} 6... cxd4 {[%clk 0:03:01.4]} 7.
Nxd4 {[%clk 0:03:02.8]} 7... Nc6 {[%clk 0:02:54.5]} 8. Nxc6 {[%clk 0:02:56.4]}
8... bxc6 {[%clk 0:02:55.1]} 9. cxd5 {[%clk 0:02:57]} 9... cxd5 {[%clk
0:02:54.5]} 10. Qa4+ {[%clk 0:02:53.6]} 10... Bd7 {[%clk 0:02:53.9]} 11. Bb5
{[%clk 0:02:54.4]} 11... e6 {[%clk 0:02:40.1]} 12. O-O {[%clk 0:02:54.5]} 12...
O-O {[%clk 0:02:39.6]} 13. Bxd7 {[%clk 0:02:33.2]} 13... Nxd7 {[%clk 0:02:39.3]}
14. Bd2 {[%clk 0:02:33.4]} 14... Ne5 {[%clk 0:02:32.5]} 15. Ne2 {[%clk
0:02:14.5]} 15... Nc4 {[%clk 0:02:21.5]} 16. Bc3 {[%clk 0:02:09.6]} 16... Nxb2
{[%clk 0:02:13]} 17. Qc2 {[%clk 0:01:43.9]} 17... Nc4 {[%clk 0:02:09.4]} 18.
Bxg7 {[%clk 0:01:44.2]} 18... Kxg7 {[%clk 0:02:10.1]} 19. Rfd1 {[%clk
0:01:44.2]} 19... Qf6 {[%clk 0:02:08.6]} 20. Rac1 {[%clk 0:01:41.1]} 20... Rfc8
{[%clk 0:02:04.3]} 21. Qc3 {[%clk 0:01:25.7]} 21... Rab8 {[%clk 0:01:58.4]} 22.
Qxf6+ {[%clk 0:01:24.3]} 22... Kxf6 {[%clk 0:01:58.9]} 23. Rc2 {[%clk
0:01:08.6]} 23... a5 {[%clk 0:01:54.6]} 24. g3 {[%clk 0:01:07]} 24... a4 {[%clk
0:01:55.5]} 25. Rdc1 {[%clk 0:01:04.8]} 25... a3 {[%clk 0:01:55.8]} 26. Nd4
{[%clk 0:01:04.8]} 26... Rb2 {[%clk 0:01:54.2]} 27. Nb3 {[%clk 0:01:04.9]} 27...
Rb8 {[%clk 0:01:47]} 28. e4 {[%clk 0:00:49.3]} 28... R8xb3 {[%clk 0:01:17.6]}
29. axb3 {[%clk 0:00:37]} 29... Rxb3 {[%clk 0:01:17]} 30. exd5 {[%clk
0:00:30.7]} 30... exd5 {[%clk 0:01:16.8]} 31. Rxc4 {[%clk 0:00:20.5]} 31... dxc4
{[%clk 0:01:16.1]} 32. Rxc4 {[%clk 0:00:22.4]} 32... Rb1+ {[%clk 0:01:15.7]} 33.
Kg2 {[%clk 0:00:23.5]} 33... a2 {[%clk 0:01:16.8]} 34. Rc6+ {[%clk 0:00:24.7]}
34... Kg7 {[%clk 0:01:17.4]} 35. Ra6 {[%clk 0:00:25.6]} 35... a1=Q {[%clk
0:01:18.1]} 36. Rxa1 {[%clk 0:00:26.8]} 36... Rxa1 {[%clk 0:01:18.8]} 0

[Event "Torneo Nuevo Centro. Jornada 10"]
[Site "Chess.com"]
[Date "2020.08.21"]
[Round "5"]
[White "Pardo Ruiz, Beatriz"]
[Black "Polikarpov, Anton"]
[Result "0-1"]
[WhiteElo "1316"]
[BlackElo "1281"]
[TimeControl "180+2"]
[EndTime "11:23:31 PDT"]
[Termination "Victoria de AntonPolikarpov por tiempo"]

1. e4 {[%clk 0:03:01.9]} 1... e5 {[%clk 0:02:59.6]} 2. Nf3 {[%clk 0:03:00.8]}
2... Nc6 {[%clk 0:02:59.2]} 3. Bc4 {[%clk 0:02:58.5]} 3... Bc5 {[%clk
0:02:57.6]} 4. Nc3 {[%clk 0:02:57.5]} 4... d6 {[%clk 0:02:57.4]} 5. h3 {[%clk
0:02:53.2]} 5... h6 {[%clk 0:02:57.8]} 6. d3 {[%clk 0:02:48.5]} 6... Nf6 {[%clk
0:02:57.1]} 7. Be3 {[%clk 0:02:46.4]} 7... Be6 {[%clk 0:02:55.1]} 8. Nd5 {[%clk
0:02:45.2]} 8... Nxd5 {[%clk 0:02:52.7]} 9. exd5 {[%clk 0:02:47.1]} 9... Nd4
{[%clk 0:02:50.2]} 10. Nxd4 {[%clk 0:02:43.1]} 10... exd4 {[%clk 0:02:48.4]} 11.
Bxd4 {[%clk 0:02:32.2]} 11... Bxd4 {[%clk 0:02:46.8]} 12. dxe6 {[%clk
0:02:29.7]} 12... Qe7 {[%clk 0:02:39.6]} 13. O-O {[%clk 0:02:22.3]} 13... fxe6
{[%clk 0:02:31.7]} 14. c3 {[%clk 0:02:21]} 14... Bb6 {[%clk 0:02:28.7]} 15. Re1
{[%clk 0:02:16.8]} 15... O-O {[%clk 0:02:24.2]} 16. Bxe6+ {[%clk 0:02:12.6]}
16... Kh8 {[%clk 0:02:22.3]} 17. Qg4 {[%clk 0:02:03.3]} 17... Bxf2+ {[%clk
0:02:17]} 18. Kh1 {[%clk 0:01:30.7]} 18... Bxe1 {[%clk 0:02:09.3]} 19. Rxe1
{[%clk 0:01:10.8]} 19... Qf6 {[%clk 0:02:06]} 20. Bc4 {[%clk 0:01:00.2]} 20...
Qf2 {[%clk 0:01:57.3]} 21. Rb1 {[%clk 0:00:52.3]} 21... Rae8 {[%clk 0:01:53.5]}
22. Qd4 {[%clk 0:00:34.8]} 22... Re1+ {[%clk 0:01:51.6]} 23. Rxe1 {[%clk
0:00:28.3]} 23... Qxe1+ {[%clk 0:01:51.2]} 24. Kh2 {[%clk 0:00:15.4]} 24... Qe5+
{[%clk 0:01:43.5]} 25. Qxe5 {[%clk 0:00:14.3]} 25... dxe5 {[%clk 0:01:42]} 26.
Kg3 {[%clk 0:00:14.7]} 26... a6 {[%clk 0:01:40]} 27. Kg4 {[%clk 0:00:15.2]}
27... b5 {[%clk 0:01:33.9]} 28. Bd5 {[%clk 0:00:15.2]} 28... Rf4+ {[%clk
0:01:29.2]} 29. Kg3 {[%clk 0:00:11.5]} 29... g5 {[%clk 0:01:28.1]} 30. Bb7
{[%clk 0:00:05.8]} 30... a5 {[%clk 0:01:23.1]} 31. Bc6 {[%clk 0:00:03.7]} 31...
h5 {[%clk 0:01:19.2]} 0

[Event "Torneo Nuevo Centro. Jornada 10"]
[Site "Chess.com"]
[Date "2020.08.21"]
[Round "5"]
[White "Escalona Moncholi, Felix"]
[Black "Sos Andreu, Eric"]
[Result "0-1"]
[WhiteElo "2084"]
[BlackElo "2516"]
[TimeControl "180+2"]
[EndTime "11:23:44 PDT"]
[Termination "Victoria de ericovski por tiempo"]

1. e4 {[%clk 0:03:01.9]} 1... c6 {[%clk 0:03:00.8]} 2. Nc3 {[%clk 0:03:02.4]}
2... d5 {[%clk 0:03:02.4]} 3. Qf3 {[%clk 0:03:03.5]} 3... dxe4 {[%clk
0:03:02.4]} 4. Nxe4 {[%clk 0:03:05.4]} 4... Nd7 {[%clk 0:03:03.3]} 5. d4 {[%clk
0:03:05.7]} 5... Ndf6 {[%clk 0:03:04.2]} 6. Bd3 {[%clk 0:03:05]} 6... Bg4 {[%clk
0:03:05.1]} 7. Qe3 {[%clk 0:02:51.8]} 7... Nxe4 {[%clk 0:03:02.4]} 8. Bxe4
{[%clk 0:02:49.2]} 8... Nf6 {[%clk 0:03:03.9]} 9. Bd3 {[%clk 0:02:37.2]} 9... e6
{[%clk 0:03:02.9]} 10. c3 {[%clk 0:02:30.7]} 10... Qd5 {[%clk 0:03:02.7]} 11. f3
{[%clk 0:02:28.3]} 11... Bf5 {[%clk 0:03:01.6]} 12. Bxf5 {[%clk 0:02:06]} 12...
Qxf5 {[%clk 0:03:03.5]} 13. Ne2 {[%clk 0:02:04.2]} 13... Bd6 {[%clk 0:03:01.8]}
14. Qg5 {[%clk 0:01:41.5]} 14... Qxg5 {[%clk 0:02:57.9]} 15. Bxg5 {[%clk
0:01:43.4]} 15... Nd5 {[%clk 0:02:55.7]} 16. O-O {[%clk 0:01:34.4]} 16... h6
{[%clk 0:02:55.3]} 17. Bd2 {[%clk 0:01:35]} 17... b5 {[%clk 0:02:51.9]} 18. b3
{[%clk 0:01:31.1]} 18... O-O {[%clk 0:02:42.8]} 19. c4 {[%clk 0:01:14.1]} 19...
bxc4 {[%clk 0:02:44.7]} 20. bxc4 {[%clk 0:01:15.5]} 20... Nf6 {[%clk 0:02:45.5]}
21. Bf4 {[%clk 0:00:51.7]} 21... Bxf4 {[%clk 0:02:45.1]} 22. Nxf4 {[%clk
0:00:53.6]} 22... Rfd8 {[%clk 0:02:46]} 23. Ne2 {[%clk 0:00:53.1]} 23... Rab8
{[%clk 0:02:45.1]} 24. Rab1 {[%clk 0:00:53.4]} 24... Kf8 {[%clk 0:02:44.9]} 25.
Kf2 {[%clk 0:00:53.1]} 25... Ke7 {[%clk 0:02:45.1]} 26. Ke3 {[%clk 0:00:54.1]}
26... Ne8 {[%clk 0:02:45.3]} 27. c5 {[%clk 0:00:48.9]} 27... Nc7 {[%clk
0:02:45.2]} 28. Nc3 {[%clk 0:00:49.1]} 28... g5 {[%clk 0:02:32.3]} 29. g3 {[%clk
0:00:30.7]} 29... f5 {[%clk 0:02:32]} 30. f4 {[%clk 0:00:29]} 30... Kf6 {[%clk
0:02:31]} 31. Rxb8 {[%clk 0:00:26.9]} 31... Rxb8 {[%clk 0:02:31.2]} 32. Rb1
{[%clk 0:00:28.8]} 32... Rxb1 {[%clk 0:02:31.2]} 33. Nxb1 {[%clk 0:00:30.7]}
33... Nd5+ {[%clk 0:02:32.5]} 34. Kf3 {[%clk 0:00:30.3]} 34... Nb4 {[%clk
0:02:20.1]} 35. a3 {[%clk 0:00:17.5]} 35... Nc2 {[%clk 0:02:20.7]} 36. fxg5+
{[%clk 0:00:08.7]} 36... hxg5 {[%clk 0:02:21.3]} 37. h4 {[%clk 0:00:08.4]} 37...
gxh4 {[%clk 0:02:13.5]} 38. gxh4 {[%clk 0:00:10.3]} 38... Nxd4+ {[%clk
0:02:14.7]} 39. Ke3 {[%clk 0:00:11.7]} 39... Nb3 {[%clk 0:02:15.4]} 40. Nd2
{[%clk 0:00:11.2]} 40... Nxc5 {[%clk 0:02:13.9]} 41. Nc4 {[%clk 0:00:12.5]}
41... Nd7 {[%clk 0:02:07.2]} 42. Na5 {[%clk 0:00:05]} 42... Ne5 {[%clk
0:02:04.9]} 43. Kf4 {[%clk 0:00:02.5]} 43... c5 {[%clk 0:02:00.8]} 44. h5 {[%clk
0:00:02.9]} 44... Nd3+ {[%clk 0:02:01.4]} 45. Ke3 {[%clk 0:00:03.6]} 45... Nb2
{[%clk 0:02:00]} 0

[Event "Torneo Nuevo Centro. Jornada 10"]
[Site "Chess.com"]
[Date "2020.08.21"]
[Round "5"]
[White "Bercaru, Vlad Ionut"]
[Black "Mellado Sais, Carles"]
[Result "1-0"]
[WhiteElo "1762"]
[BlackElo "1407"]
[TimeControl "180+2"]
[EndTime "11:24:06 PDT"]
[Termination "Victoria de Rata29 por abandono"]

1. d4 {[%clk 0:03:01.9]} 1... Nf6 {[%clk 0:02:59.3]} 2. Nf3 {[%clk 0:03:02]}
2... g6 {[%clk 0:02:56.5]} 3. Nbd2 {[%clk 0:03:00.9]} 3... Bg7 {[%clk 0:02:56]}
4. e4 {[%clk 0:03:00.7]} 4... d6 {[%clk 0:02:55]} 5. Bd3 {[%clk 0:03:00]} 5...
O-O {[%clk 0:02:53.4]} 6. O-O {[%clk 0:03:00.6]} 6... Nbd7 {[%clk 0:02:48.4]} 7.
c3 {[%clk 0:03:00.7]} 7... e5 {[%clk 0:02:45.3]} 8. dxe5 {[%clk 0:03:01.4]} 8...
dxe5 {[%clk 0:02:42.4]} 9. Nc4 {[%clk 0:03:00]} 9... Re8 {[%clk 0:02:40.5]} 10.
Qe2 {[%clk 0:02:57.2]} 10... Nh5 {[%clk 0:02:02]} 11. Be3 {[%clk 0:02:33.4]}
11... Ndf6 {[%clk 0:01:53]} 12. Rad1 {[%clk 0:02:24.2]} 12... Qe7 {[%clk
0:01:51.6]} 13. Ncxe5 {[%clk 0:02:16]} 13... Nd7 {[%clk 0:01:38.7]} 14. Nxd7
{[%clk 0:02:11.7]} 14... Bxd7 {[%clk 0:01:37.7]} 15. Bg5 {[%clk 0:02:05.4]}
15... Bf6 {[%clk 0:01:31.9]} 16. Bxf6 {[%clk 0:02:01.3]} 16... Qxf6 {[%clk
0:01:31.4]} 17. e5 {[%clk 0:01:44.8]} 17... Qe7 {[%clk 0:01:27.8]} 18. Bb5
{[%clk 0:01:31]} 18... Nf4 {[%clk 0:01:12.1]} 19. Qc4 {[%clk 0:01:25.3]} 19...
Bxb5 {[%clk 0:01:09.5]} 20. Qxb5 {[%clk 0:01:22.4]} 20... c6 {[%clk 0:01:07.2]}
21. Qc4 {[%clk 0:01:17]} 21... Nd5 {[%clk 0:01:04.1]} 22. Rfe1 {[%clk
0:01:08.8]} 22... Rad8 {[%clk 0:01:00]} 23. Qe4 {[%clk 0:00:53.9]} 23... f5
{[%clk 0:00:46.9]} 24. Qe2 {[%clk 0:00:42.5]} 24... Nf4 {[%clk 0:00:42.6]} 25.
Qe3 {[%clk 0:00:42]} 25... Rxd1 {[%clk 0:00:40.8]} 26. Rxd1 {[%clk 0:00:41]}
26... Nd5 {[%clk 0:00:39.3]} 27. Qd4 {[%clk 0:00:35.9]} 27... Rd8 {[%clk
0:00:37.1]} 28. c4 {[%clk 0:00:33.5]} 28... c5 {[%clk 0:00:35.3]} 29. Qd2 {[%clk
0:00:28.4]} 29... Ne3 {[%clk 0:00:18.5]} 30. Qxd8+ {[%clk 0:00:27.8]} 30... Qxd8
{[%clk 0:00:16.2]} 31. Rxd8+ {[%clk 0:00:29]} 31... Kf7 {[%clk 0:00:16.1]} 32.
fxe3 {[%clk 0:00:30.5]} 1

[Event "Torneo Nuevo Centro. Jornada 10"]
[Site "Chess.com"]
[Date "2020.08.21"]
[Round "5"]
[White "Mancebo Ibanez, Fernando"]
[Black "Gutierrez Marco, Dario"]
[Result "1-0"]
[WhiteElo "2099"]
[BlackElo "1832"]
[TimeControl "180+2"]
[EndTime "11:24:15 PDT"]
[Termination "Victoria de Ferval64 por abandono"]

1. d4 {[%clk 0:03:01.9]} 1... Nf6 {[%clk 0:02:59.7]} 2. c4 {[%clk 0:03:02.7]}
2... c5 {[%clk 0:03:00.5]} 3. d5 {[%clk 0:03:03.4]} 3... e6 {[%clk 0:03:01.6]}
4. Nc3 {[%clk 0:03:04.3]} 4... exd5 {[%clk 0:03:02.7]} 5. cxd5 {[%clk
0:03:05.6]} 5... d6 {[%clk 0:03:04]} 6. e4 {[%clk 0:03:07.1]} 6... g6 {[%clk
0:03:04.8]} 7. f4 {[%clk 0:03:07.8]} 7... Bg7 {[%clk 0:03:05.2]} 8. Bb5+ {[%clk
0:03:09.3]} 8... Nfd7 {[%clk 0:03:06.7]} 9. Nf3 {[%clk 0:03:10]} 9... O-O {[%clk
0:03:07.5]} 10. O-O {[%clk 0:03:11]} 10... a6 {[%clk 0:03:08.8]} 11. Bd3 {[%clk
0:03:11.8]} 11... b5 {[%clk 0:03:09.8]} 12. Kh1 {[%clk 0:03:12.2]} 12... Re8
{[%clk 0:03:10.5]} 13. a3 {[%clk 0:03:12.4]} 13... Nb6 {[%clk 0:03:06.4]} 14. f5
{[%clk 0:03:13.1]} 14... c4 {[%clk 0:02:58.5]} 15. Bc2 {[%clk 0:03:14.1]} 15...
N8d7 {[%clk 0:02:55.2]} 16. Bg5 {[%clk 0:03:13.5]} 16... Bf6 {[%clk 0:02:48.6]}
17. h4 {[%clk 0:03:13.3]} 17... h6 {[%clk 0:02:41.5]} 18. Bxh6 {[%clk
0:03:09.3]} 18... Bxh4 {[%clk 0:02:40]} 19. fxg6 {[%clk 0:03:01.7]} 19... fxg6
{[%clk 0:02:28.8]} 20. e5 {[%clk 0:02:49.3]} 20... Nxe5 {[%clk 0:02:19.9]} 21.
Nxe5 {[%clk 0:02:46.7]} 21... Rxe5 {[%clk 0:02:16.4]} 22. Rf8+ {[%clk
0:01:05.1]} 22... Qxf8 {[%clk 0:02:12.9]} 23. Bxf8 {[%clk 0:01:06.2]} 23... Kxf8
{[%clk 0:02:13.6]} 24. Qf3+ {[%clk 0:01:03.5]} 24... Bf5 {[%clk 0:02:07.3]} 25.
g4 {[%clk 0:00:59.1]} 25... Ke7 {[%clk 0:01:58.7]} 26. gxf5 {[%clk 0:00:59.8]}
26... Rh8 {[%clk 0:02:00.1]} 27. Kg2 {[%clk 0:00:55.3]} 27... gxf5 {[%clk
0:01:44.4]} 28. Bxf5 {[%clk 0:00:09.1]} 28... Rg8+ {[%clk 0:01:36.4]} 29. Kh1
{[%clk 0:00:09.9]} 29... Rh8 {[%clk 0:01:35.5]} 30. Bh3 {[%clk 0:00:08.5]} 30...
Bf6 {[%clk 0:01:31.6]} 31. Rf1 {[%clk 0:00:08.8]} 31... Rh6 {[%clk 0:01:30.1]}
32. Qf4 {[%clk 0:00:09.4]} 32... Reh5 {[%clk 0:01:29.5]} 33. Kg2 {[%clk
0:00:08.4]} 33... Rxh3 {[%clk 0:01:28.8]} 34. Re1+ {[%clk 0:00:09.2]} 34... Kf7
{[%clk 0:01:28.3]} 35. Re6 {[%clk 0:00:09.4]} 35... R3h4 {[%clk 0:00:52.1]} 36.
Rxf6+ {[%clk 0:00:09.8]} 36... Rxf6 {[%clk 0:00:51]} 37. Qxh4 {[%clk 0:00:10.6]}
37... Rg6+ {[%clk 0:00:52.8]} 38. Kf3 {[%clk 0:00:10.9]} 38... Kg7 {[%clk
0:00:54.7]} 39. Ne4 {[%clk 0:00:11]} 39... Rf6+ {[%clk 0:00:56.6]} 40. Qxf6+
{[%clk 0:00:11.2]} 1

[Event "Torneo Nuevo Centro. Jornada 10"]
[Site "Chess.com"]
[Date "2020.08.21"]
[Round "5"]
[White "Rabbani Perez, Oumaima "]
[Black "Alvarez Usina, Jordi"]
[Result "1/2-1/2"]
[WhiteElo "720"]
[BlackElo "1294"]
[TimeControl "180+2"]
[EndTime "11:24:28 PDT"]
[Termination "Tablas por repeticiÃ³n"]

1. e3 {[%clk 0:03:01.9]} 1... e5 {[%clk 0:02:58.5]} 2. Bc4 {[%clk 0:02:55.3]}
2... Nf6 {[%clk 0:02:53.3]} 3. Nf3 {[%clk 0:02:46.9]} 3... d6 {[%clk 0:02:49]}
4. Ng5 {[%clk 0:02:41.6]} 4... d5 {[%clk 0:02:44]} 5. Be2 {[%clk 0:02:37.8]}
5... h6 {[%clk 0:02:41.5]} 6. Nf3 {[%clk 0:02:33.7]} 6... Nc6 {[%clk 0:02:41.7]}
7. O-O {[%clk 0:02:31]} 7... Bd6 {[%clk 0:02:40.2]} 8. h3 {[%clk 0:02:20.3]}
8... Be6 {[%clk 0:02:37.3]} 9. Nc3 {[%clk 0:02:02.7]} 9... Qd7 {[%clk
0:02:36.3]} 10. Nb5 {[%clk 0:02:00.9]} 10... O-O-O {[%clk 0:02:34.2]} 11. Nxa7+
{[%clk 0:01:55]} 11... Nxa7 {[%clk 0:02:33.6]} 12. a4 {[%clk 0:01:46.6]} 12...
g5 {[%clk 0:02:28.4]} 13. h4 {[%clk 0:01:35.1]} 13... gxh4 {[%clk 0:02:18.8]}
14. Nxh4 {[%clk 0:01:33.1]} 14... e4 {[%clk 0:02:18.1]} 15. Bb5 {[%clk
0:01:28.3]} 15... Nxb5 {[%clk 0:02:05.2]} 16. axb5 {[%clk 0:01:26]} 16... Qxb5
{[%clk 0:02:05.3]} 17. d3 {[%clk 0:01:23.8]} 17... Kd7 {[%clk 0:01:56.2]} 18.
dxe4 {[%clk 0:01:12.2]} 18... Nxe4 {[%clk 0:01:55]} 19. Re1 {[%clk 0:01:08.1]}
19... Rhg8 {[%clk 0:01:42.8]} 20. Qh5 {[%clk 0:00:58.2]} 20... Rh8 {[%clk
0:01:22.8]} 21. Nf5 {[%clk 0:00:51.5]} 21... d4 {[%clk 0:01:08.3]} 22. exd4
{[%clk 0:00:49.9]} 22... Qxf5 {[%clk 0:01:03.7]} 23. Qd1 {[%clk 0:00:42.2]}
23... Qf3 {[%clk 0:01:03.3]} 24. gxf3 {[%clk 0:00:40.9]} 24... Rdg8+ {[%clk
0:00:58.9]} 25. Kf1 {[%clk 0:00:38.1]} 25... Bc4+ {[%clk 0:00:55.9]} 26. Re2
{[%clk 0:00:32.7]} 26... Bxe2+ {[%clk 0:00:55.9]} 27. Kxe2 {[%clk 0:00:31]}
27... Nf6 {[%clk 0:00:53.2]} 28. Be3 {[%clk 0:00:22.4]} 28... Re8 {[%clk
0:00:53.1]} 29. Qb1 {[%clk 0:00:20.1]} 29... Re7 {[%clk 0:00:49.4]} 30. Qa2
{[%clk 0:00:21]} 30... Rhe8 {[%clk 0:00:48.1]} 31. Qa4+ {[%clk 0:00:20.3]} 31...
c6 {[%clk 0:00:48.4]} 32. Qa7 {[%clk 0:00:19.3]} 32... Kc7 {[%clk 0:00:48.6]}
33. Qa5+ {[%clk 0:00:18.3]} 33... Kd7 {[%clk 0:00:45.3]} 34. Qf5+ {[%clk
0:00:15.2]} 34... Kc7 {[%clk 0:00:41.8]} 35. Qa5+ {[%clk 0:00:14]} 35... Kb8
{[%clk 0:00:37]} 36. Qa8+ {[%clk 0:00:04.6]} 36... Kc7 {[%clk 0:00:36.9]} 37.
Qa5+ {[%clk 0:00:04.6]} 1/2-1

[Event "Torneo Nuevo Centro. Jornada 10"]
[Site "Chess.com"]
[Date "2020.08.21"]
[Round "5"]
[White "De Nacimiento Montano, Antonio"]
[Black "Mangues Rubia, Alex"]
[Result "1-0"]
[WhiteElo "1851"]
[BlackElo "1550"]
[TimeControl "180+2"]
[EndTime "11:24:50 PDT"]
[Termination "Victoria de Twitch_adn4815 por abandono"]

1. e4 {[%clk 0:03:01.9]} 1... c5 {[%clk 0:03:01.2]} 2. Nf3 {[%clk 0:03:02.5]}
2... Nc6 {[%clk 0:03:02.7]} 3. d4 {[%clk 0:03:03.6]} 3... cxd4 {[%clk
0:03:04.6]} 4. Nxd4 {[%clk 0:03:04.7]} 4... Nf6 {[%clk 0:03:06.3]} 5. Nc3 {[%clk
0:03:05.7]} 5... e5 {[%clk 0:03:07.8]} 6. Ndb5 {[%clk 0:03:07]} 6... d6 {[%clk
0:03:09.1]} 7. Bg5 {[%clk 0:03:04.7]} 7... a6 {[%clk 0:03:09.7]} 8. Na3 {[%clk
0:03:06]} 8... b5 {[%clk 0:03:11.3]} 9. Nd5 {[%clk 0:03:07.4]} 9... Be7 {[%clk
0:03:12.8]} 10. c3 {[%clk 0:03:08.1]} 10... Na5 {[%clk 0:02:43.2]} 11. Bxf6
{[%clk 0:03:07.4]} 11... Bxf6 {[%clk 0:02:42.8]} 12. Nc2 {[%clk 0:03:04]} 12...
Be6 {[%clk 0:02:30.6]} 13. Nce3 {[%clk 0:03:03.3]} 13... Bxd5 {[%clk 0:02:26.8]}
14. Nxd5 {[%clk 0:03:03.9]} 14... Rc8 {[%clk 0:02:27.8]} 15. a4 {[%clk
0:02:54.9]} 15... Nc4 {[%clk 0:02:19.5]} 16. axb5 {[%clk 0:02:48.8]} 16... axb5
{[%clk 0:02:11.6]} 17. Qb3 {[%clk 0:02:41.3]} 17... Rc5 {[%clk 0:01:56.1]} 18.
Bxc4 {[%clk 0:02:11.3]} 18... bxc4 {[%clk 0:01:50.7]} 19. Qa4+ {[%clk
0:02:11.1]} 19... Qd7 {[%clk 0:01:29.9]} 20. Qxd7+ {[%clk 0:01:54.8]} 20... Kxd7
{[%clk 0:01:31.8]} 21. Ra7+ {[%clk 0:01:55.9]} 21... Ke6 {[%clk 0:00:40.4]} 22.
Nc7+ {[%clk 0:01:49.8]} 22... Rxc7 {[%clk 0:00:40.3]} 23. Rxc7 {[%clk
0:01:50.4]} 23... Rb8 {[%clk 0:00:41.6]} 24. Rxc4 {[%clk 0:01:46.7]} 24... Rxb2
{[%clk 0:00:42.4]} 25. O-O {[%clk 0:01:47.6]} 25... d5 {[%clk 0:00:42.7]} 26.
exd5+ {[%clk 0:01:43.9]} 26... Kxd5 {[%clk 0:00:44.6]} 27. Rc8 {[%clk
0:01:44.5]} 27... e4 {[%clk 0:00:38.5]} 28. g3 {[%clk 0:01:38.6]} 28... Rc2
{[%clk 0:00:30]} 29. Rd1+ {[%clk 0:01:37.5]} 29... Ke6 {[%clk 0:00:23.7]} 30. c4
{[%clk 0:01:32.9]} 30... Be5 {[%clk 0:00:15.7]} 31. c5 {[%clk 0:01:19.8]} 31...
f5 {[%clk 0:00:14.3]} 32. c6 {[%clk 0:01:17.6]} 32... f4 {[%clk 0:00:14.3]} 33.
gxf4 {[%clk 0:01:16.5]} 33... Bxf4 {[%clk 0:00:16.2]} 34. Re8+ {[%clk
0:01:04.7]} 34... Kf7 {[%clk 0:00:13.1]} 35. Rxe4 {[%clk 0:01:04.2]} 35... Bb8
{[%clk 0:00:11.3]} 36. Rd7+ {[%clk 0:01:02.2]} 36... Kf6 {[%clk 0:00:12.1]} 37.
Ree7 {[%clk 0:00:56.4]} 37... Rxc6 {[%clk 0:00:12.3]} 38. Rxg7 {[%clk
0:00:57.2]} 38... h6 {[%clk 0:00:10.2]} 39. Rdf7+ {[%clk 0:00:52.2]} 39... Ke6
{[%clk 0:00:10.3]} 40. Rg6+ {[%clk 0:00:49.9]} 40... Kd5 {[%clk 0:00:10.8]} 41.
Rxc6 {[%clk 0:00:50.7]} 41... Kxc6 {[%clk 0:00:12.7]} 42. Rf6+ {[%clk
0:00:52.1]} 42... Kd5 {[%clk 0:00:12.9]} 43. Rxh6 {[%clk 0:00:53.7]} 43... Bf4
{[%clk 0:00:13.7]} 44. Rf6 {[%clk 0:00:53.4]} 44... Ke5 {[%clk 0:00:14.8]} 45.
Rxf4 {[%clk 0:00:54]} 45... Kxf4 {[%clk 0:00:16.7]} 46. Kg2 {[%clk 0:00:55.6]}
46... Kg4 {[%clk 0:00:17.9]} 47. f3+ {[%clk 0:00:56.9]} 47... Kh5 {[%clk
0:00:19.8]} 48. Kg3 {[%clk 0:00:58.2]} 48... Kg5 {[%clk 0:00:21.1]} 49. h4+
{[%clk 0:00:59.7]} 49... Kh5 {[%clk 0:00:23]} 50. f4 {[%clk 0:01:00.7]} 50...
Kg6 {[%clk 0:00:24.9]} 51. Kg4 {[%clk 0:01:02.4]} 51... Kh6 {[%clk 0:00:26.8]}
52. f5 {[%clk 0:01:04]} 52... Kg7 {[%clk 0:00:28.7]} 53. Kg5 {[%clk 0:01:05.1]}
53... Kh7 {[%clk 0:00:30.6]} 54. f6 {[%clk 0:01:06.6]} 54... Kg8 {[%clk
0:00:32]} 55. Kg6 {[%clk 0:01:08.1]} 55... Kf8 {[%clk 0:00:33.2]} 56. f7 {[%clk
0:01:09.1]} 56... Ke7 {[%clk 0:00:33.9]} 57. Kg7 {[%clk 0:01:10.6]} 1